Cogmind - Beta 10.2 @@@ ROGUE MODE // 2021.06.16 @ 14:17:26 Player: nirgal Result: Destroyed by G-34 Mercenary with Small Laser Performance ------------- Evolutions (0) 0 Regions Visited (1) 200 Robots Destroyed (8) 40 Value Destroyed (280) 280 Prototype IDs (3) 60 Alien Tech Used (0) 0 Bonus (0) 0 TOTAL SCORE: 580 Bonus ------- None Cogmind --------- Core Integrity 0/250 Matter 294/300 Energy 160/160 System Corruption 0% Temperature Cool (6) Movement Walking (120) Location -10/Materials Parts ------- > --- POWER (1) -------- Light Nuclear Core > --- PROPULSION (2) --- Aluminum Leg Aluminum Leg > --- UTILITY (2) ------ Small Storage Unit Structural Scanner > --- WEAPON (2) ------- Light Assault Rifle Welding Torch > --- INVENTORY (6) ---- Ion Engine Wheel Compact Wheel Improved Heat Sink Peak State ------------ > --- POWER ------------ Light Nuclear Core > --- PROPULSION ------- Aluminum Leg Aluminum Leg > --- UTILITY ---------- Small Storage Unit Structural Scanner > --- WEAPON ----------- Light Assault Rifle Welding Torch > --- INVENTORY -------- Ion Engine Wheel Compact Wheel Improved Heat Sink [Rating: 9] Favorites ----------- Power Light Ion Engine Engine Light Ion Engine Power Core Light Nuclear Core Propulsion Light Treads Treads Light Treads Leg Aluminum Leg Utility Small Storage Unit Device Structural Scanner Storage Small Storage Unit Processor Signal Interpreter Weapon Small Laser Energy Gun Small Laser Energy Cannon Beam Cannon Ballistic Gun Light Assault Rifle Special Weapon Welding Torch Build | -11 -10 ------- Run | Scr Mat Slots Evolved . | . . Power . | . . Propulsion . | . . Utility . | . . Weapon . | . . Parts Attached 15 | 6 9 Power 2 | 1 1 Engine 1 | 1 . Core 1 | . 1 Reactor . | . . Propulsion 4 | 2 2 Treads 2 | 2 . Leg 2 | . 2 Wheel . | . . Hover . | . . Flight . | . . Utility 3 | 1 2 Device 1 | . 1 Storage 1 | 1 . Processor 1 | . 1 Hackware . | . . Protection . | . . Artifact . | . . Weapon 6 | 2 4 Energy Gun 3 | 2 1 Energy Cannon 1 | . 1 Ballistic Gun 1 | . 1 Ballistic Cannon . | . . Launcher . | . . Special Weapon 1 | . 1 Impact Weapon . | . . Slashing Weapon . | . . Piercing Weapon . | . . Special Melee Weapon . | . . Unidentified Prototypes . | . . Parts Lost 6 | . 6 Power 1 | . 1 Propulsion 2 | . 2 Utility . | . . Weapon 3 | . 3 Highest Loss Streak 4 | . 4 Average Slot Usage (%) 91 | . 91 Engine 8 | . 8 Core 3 | . 3 Treads 20 | . 20 Leg 5 | . 5 Device 10 | . 10 Storage 14 | . 14 Energy Gun 16 | . 16 Ballistic Gun 5 | . 5 Special Weapon 3 | . 3 Naked Turns . | . . Heaviest Build 12 | 10 12 Greatest Support 40 | 40 40 Greatest Overweight (x) 3 | 3 3 Average Overweight (x) . | . . Largest Inventory Capacity 6 | 6 6 Average Capacity 5 | 5 6 Most Carried 6 | 6 6 Average Carried 5 | 4 5 Final Capacity 6 | 6 6 Final Carried 6 | 6 4 Class Distribution -------------------- 100% | Mutant Dominant Class ---------------- Mutant | -10/Materials Resources | -11 -10 ----------- Run | Scr Mat Matter Collected 339 | 260 79 Remotely . | . . Salvage Created 350 | . 350 Parts 23 | . 23 Haulers Intercepted . | . . Recyclers Shooed . | . . Parts Field Recycled . | . . Retrieved Matter . | . . Parts Self-Destructed . | . . Prevented . | . . Kills | -11 -10 ------- Run | Scr Mat Combat Hostiles Destroyed 7 | . 7 Guns 6 | . 6 Cannons 1 | . 1 Classes Destroyed 2 | . 2 Watcher 1 | . 1 Grunt 7 | . 7 Best Kill Streak 3 | . 3 Combat Bots Only 3 | . 3 Max Kills in Single Turn 1 | . 1 Gunslinging . | . . Exploded . | . . Melee . | . . Uniques/NPCs Destroyed . | . . Combat | -11 -10 -------- Run | Scr Mat Damage Taken 946 | . 946 Core 252 | . 252 Absorbed by Shields . | . . Core Remaining (%) 100 | 100 . Volleys Fired 38 | . 38 Largest 2 | . 2 Hottest 100 | . 100 Shots Fired 64 | . 64 Gun 45 | . 45 Cannon 6 | . 6 Launcher . | . . Special 13 | . 13 Kinetic 20 | . 20 Thermal 36 | . 36 Explosive . | . . Electromagnetic 8 | . 8 Robot Hit Streak 10 | . 10 Robot Miss Streak 3 | . 3 Penetration Max . | . . Secondary Targets 1 | . 1 Max Gunslinging Chain 1 | . 1 Shots Hit Robots 45 | . 45 Core Hits 18 | . 18 Critical Hits . | . . Critical Kills . | . . Critical Parts Destroyed . | . . Melee Attacks . | . . Impact . | . . Slashing . | . . Piercing . | . . Sneak Attacks . | . . Combat Hostiles . | . . Follow-up Attacks . | . . Damage Inflicted 408 | . 408 Guns 312 | . 312 Cannons 70 | . 70 Explosions . | . . Melee . | . . Ramming 3 | . 3 Kinetic 126 | . 126 Thermal 214 | . 214 Explosive . | . . Electromagnetic 65 | . 65 Impact . | . . Slashing . | . . Piercing . | . . Highest Corruption . | . . Average Corruption . | . . Corruption Purged . | . . Overload Shots . | . . Overflow Damage . | . . Projectiles . | . . Explosions . | . . Melee . | . . Knockbacks . | . . Impact . | . . Kinetic . | . . Secondary . | . . Self-Inflicted Damage . | . . Shots . | . . Rammed 5 | . 5 Targets Rammed 5 | . 5 Kicked . | . . Crushed . | . . Highest Temperature 246 | . 246 Average Temperature 122 | . 122 Received Heat Transfer 546 | . 546 Effects 2 | . 2 Energy Bleed 1 | . 1 Interference 1 | . 1 Siege Activations . | . . Robots Corrupted . | . . Combat Hostiles . | . . Parts Fried . | . . Impact Corruptions . | . . Robots Melted . | . . Combat Hostiles . | . . Parts Melted . | . . Heat Transferred 634 | . 634 Parts Sabotaged . | . . Parts Stolen . | . . Parts Stripped . | . . Power Chain Reactions . | . . Missiles Intercepted . | . . Alert | -11 -10 ------- Run | Scr Mat Peak Influence 132 | . 132 Initial . | . . Average 46 | . 54 Maximum Alert Level . | . . Low Security (%) 100 | 100 100 Level 1 . | . . Level 2 . | . . Level 3 . | . . Level 4 . | . . Level 5 . | . . High Security . | . . Max Security . | . . Squads Dispatched 1 | . 1 Investigation 1 | . 1 Extermination . | . . Reinforcement . | . . Assault . | . . Garrison . | . . Intercept . | . . Construction Impeded . | . . Haulers Reinforced . | . . Stealth | -11 -10 --------- Run | Scr Mat Distress Signals . | . . Communications Jammed . | . . Distress Signals . | . . Times Spotted 11 | . 11 Peak Tracking Total 4 | . 4 Tactical Retreats 1 | . 1 Traps | -11 -10 ------- Run | Scr Mat Traps Triggered . | . . Indirectly . | . . Trap Hack Attempts . | . . Triggered . | . . Disarmed . | . . Reprogrammed . | . . Reused . | . . Traps Extracted . | . . Installed . | . . Triggered . | . . Machines | -11 -10 ---------- Run | Scr Mat Machines Disabled . | . . Max in Single Turn . | . . Machines Sabotaged . | . . Garrisons Compromised . | . . Overloaded Fab Kills . | . . Fab Network Shutdowns . | . . Hacking | -11 -10 --------- Run | Scr Mat Machines Accessed 4 | . 4 Terminals 3 | . 3 Fabricators . | . . Repair Stations . | . . Recycling Units 1 | . 1 Scanalyzers . | . . Garrison Access . | . . Total Hacks 9 | . 9 Successful 5 | . 5 Failed 4 | . 4 Catastrophic . | . . Database Lockouts . | . . Manual 3 | . 3 Terminals 8 | . 8 Fabricators . | . . Repair Stations . | . . Recycling Units 1 | . 1 Scanalyzers . | . . Garrison Access . | . . Terminal Hacks 4 | . 4 Prototype ID Bank 2 | . 2 Investigation Status 1 | . 1 Zone Layout 1 | . 1 Fabricator Hacks . | . . Repair Station Hacks . | . . Recycling Unit Hacks 1 | . 1 Process 1 | . 1 Scanalyzer . | . . Garrison Access Hacks . | . . Unauthorized Hacks . | . . Terminals . | . . Fabricators . | . . Repair Stations . | . . Recycling Units . | . . Scanalyzers . | . . Garrison Access . | . . Data Cores Recovered . | . . Used . | . . Hacking Detections 3 | . 3 Full Trace Events 2 | . 2 Feedback Events . | . . Feedback Blocked . | . . Robot Schematics Acquired . | . . Robots Built . | . . Matter . | . . Time . | . . Total Robot Build Rating . | . . Part Schematics Acquired . | . . Parts Built . | . . Matter . | . . Time . | . . Total Part Build Rating . | . . Parts Repaired . | . . Time . | . . Parts Recycled . | . . Recycled Matter 86 | . 86 Retrieved Matter . | . . Retrieved Components . | . . Parts Scanalyzed . | . . Part Schematics Acquired . | . . Parts Damaged . | . . Bothacking | -11 -10 ------------ Run | Scr Mat Used RIF Installer . | . . Robots Hacked . | . . Non-combat . | . . Combat . | . . Robot Hacks Applied . | . . Relay Couplers Released . | . . Robots Rewired . | . . Allies Hacked . | . . Hacks Repelled . | . . Allies | -11 -10 -------- Run | Scr Mat Total Allies . | . . Largest Group . | . . Highest-Rated Group . | . . Highest-Rated Ally . | . . Total Orders . | . . Ally Attacks . | . . Total Damage . | . . Kills . | . . Allies Corrupted . | . . Allies Melted . | . . Intel | -11 -10 ------- Run | Scr Mat Robot Analysis Total . | . . Derelict Logs Recovered . | . . Drone Launches . | . . Drone Recoveries . | . . Exploration | -11 -10 ------------- Run | Scr Mat Turns Passed 623 | 88 535 Spaces Moved 327 | 56 271 Core 28 | 23 5 Treads 228 | 33 195 Legs 71 | . 71 Wheels . | . . Hover . | . . Flight . | . . Fastest Speed 50 | 50 120 Average Speed 146 | 132 149 Slowest Speed 200 | 200 200 Overloaded Moves . | . . Propulsion Burnouts . | . . Robots Hopped . | . . Cave-ins Triggered . | . . Exploration Rate (%) 23 | 3 44 Regions Visited 1 Branch Regions . Pre-discovered Areas . | . . Known Exits Taken . | . . Unknown Exits Taken 1 | 1 . Scrap Searched . | . . Spaces Dug . | . . Terrain Destroyed . | . . Melee . | . . Projectile . | . . AOE . | . . Terrain Rammed . | . . Walls Destroyed . | . . Machines Disabled . | . . Actions | -11 -10 --------- Run | Scr Mat Total 400 | 67 333 Wait 7 | . 7 Move 326 | 55 271 Hop . | . . Pick Up 7 | 6 1 Fast Attach 12 | 6 6 Attach 3 | . 3 Detach 1 | . 1 Swap . | . . Drop 1 | . 1 Fire 38 | . 38 Melee . | . . Ram . | . . Kick . | . . Crush 5 | . 5 Escape Stasis . | . . Rewire . | . . Trap . | . . Miscellaneous . | . . Route ------- -11/Scrapyard -10/Materials (discovered 1 exit: [*Min]) History --------- Turn | Location | Event 29 | -11/Scrapyard | Discovered new exit (range 15) 89 | -11/Scrapyard | Entered Materials 213 | -10/Materials | Discovered new exit (range 9) 318 | -10/Materials | Build established: Mutant 461 | -10/Materials | Lost 4 parts (1p3w) 465 | -10/Materials | Core integrity fell below 50% 493 | -10/Materials | Core integrity fell below 20% 624 | -10/Materials | Destroyed by G-34 Mercenary with Small Laser Last Messages --------------- 00498_ Terminal disabled. 00499_ Acquired 1 matter. 00501_ G-47 Trooper destroyed. 00502_ Acquired 1 matter. 00507_ Acquired Lgt. Nuclear Core. 00510_ R-06 Scavenger collects Particle Gun. 00510_ Acquired Imp. Heat Sink. 00511_ Acquired 10 matter. 00514_ R-06 Scavenger collects Aluminum Leg. 00517_ Acquired 20 matter. 00557_ T-07 Excavator is excavating. 00567_ Connecting with Terminal... >>Prototypes Downloading prototype IDs... Cld. Ion Engine Imp. Medium Laser 00567_ ALERT: Suspicious activity at Terminal M004. Dispatching Investigation squad. 00574_ T-07 Excavator is excavating. 00616_ G-34 Mercenary destroyed. Map ----- +----------------------------------------------------+ | | | ?????????????????????????????????????????????????? | | ?????????????????????????????????????????????????? | | ?????????????????????????????????????????????????? | | ?????????????????????????????????????????????????? | | ?????????????????????????????????????????????????? | | ?????????????????????????????????????????????????? | | ?????????????????????????????????????????????????? | | ?????????????????????????????????????????????????? | | ?????????????????????????????###?????????????????? | | ????????????????????????????? ?????????????????? | | ????????????????????????????? ?????????????????? | | ????????????????????????????## ##????????????????? | | ????????????????????????????# ????????????????? | | ???????????????????????????## #????????????????? | | ???????????????????????????? #????????????????? | | ????????????????????????????# ##########???????? | | ????????????????????????????# ## #???????? | | ????????????????????????????# ##" " #???????? | | ???????????????????????????## ##T ""#???????? | | ????????###########+######## #" ""#???????? | | ??? ??? # """#???????? | | ?# + "" #???????? | | ?# % # """#???????? | | ?# #################g### # """#???????? | | ?## ####??????????????# [@### ##! """#???????? | | ??# #?????????????????# #?# ## " #???????? | | ??# #???#######???????# #?# ## #???????? | | ??# #???# """ #???????# #?# ##########???????? | | ??# #???# "T #???????# #?# #????????????????? | | ??# #???# #???????# #?# ########## ?????? | | ??# #???# |! #???????# #?# ????? | | ??# #???# #???????#####?# ????? | | ??# #???# #?????????????# """ " ?????? | | ### ##??#! % #########?????# """"" T??????? | | #######+## ####### """"" "??????? | | """"" ? ??????? | | ^ T < """ ???????? | | ????????? | | ##### #" "# ! ??????? | | # ###### #" !"! "# ???????? | | # # # #"""""""# ???????? | | # / + ######### ???????? | | #% # # ???????? | | %% # ###%############+#############+#????????? | | # # ! #?# #???????????????????????????????????? | | # #!= #?# #???????????????????????????????????? | | # #! #?#%#???????????????????????????????????? | | # ########+######??????????????????????????????? | | # ##???# % #??????????????????????????????? | +----------------------------------------------------+ Best States ------------- Heat Dissipation 25 Energy Generation 14 Energy Capacity 160 Matter Stores 300 Matter Capacity 300 Sight Range 16 Terrain Scan Density 10 Evasion (%) 50 Recoil Reduction 2 Item Schematics ----------------- None Robot Schematics ------------------ None Fabricated ------------ Nothing Alien Tech Used ----------------- None Achievements -------------- None Challenges ------------ None Game ------ Seed DeepGaussNullifier Manual? 0 Play Time 00:11:33 Cumulative 12.3 hours Start 2021.06.16 @ 14:06:19 End 2021.06.16 @ 14:17:26 Sessions 1 Manual Loads 0 Difficulty Rogue Special Mode None Game No. 32 Rogue 32 Adventurer 0 Explorer 0 Win Type - Total 0 Types 0/0/0/0/0/0/0/0/0 Lore% 3 Gallery% 22 Achievement% 16 Wizard Run 0 Options --------- ASCII 0 Keyboard 1 Movement Vi Keybinds 0 Fullscreen 1 Font 18/SmallcapsGlow Map View 76x50 Tactical HUD 1 Map Filters NONE Filters NONE Steam 1 RUN: 0ab90756-8a12-4f8b-8d00-3a5c16a3062a